bitfinex/quotes_ETHUSD_20240822
["timestamp","ask_amount","ask_price","bid_price","bid_amount"]
[1724301429823,3.7086,2624.1,2623.8,2.28668]
[1724301430028,4.07946,2624.1,2623.9,2.28666]
[1724301430350,4.07946,2624.1,2623.8,2.28668]
[1724301430351,2.77146,2624.1,2623.8,2.28668]
[1724301430656,2.77146,2624.1,2623.8,4.57338]
[1724301431113,2.4006,2624.1,2623.9,2.28665]
[1724301431309,2.4006,2624.1,2624.0,2.28658]
[1724301433823,2.4006,2624.1,2623.8,2.28668]
[1724301434028,2.4006,2624.1,2623.9,2.28665]
[1724301434742,2.79848874,2624.1,2623.9,2.28665]
[1724301435619,2.79848874,2624.1,2623.9,4.57326]
[1724301436314,0.09562897,2624.0,2623.9,4.57326]
[1724301436538,0.09562897,2624.0,2623.7,2.28679]
[1724301437755,0.09562897,2624.0,2623.9,2.28667]
[1724301440571,2.39692897,2624.0,2623.9,2.28667]
[1724301441298,2.39692897,2624.0,2623.7,4.57355]
[1724301441493,2.39692897,2624.0,2623.8,2.28673]
[1724301442095,1.308,2623.9,2623.5,2.28694]
[1724301442381,1.308,2623.9,2623.5,4.5739]
[1724301442686,0.09544758,2623.8,2623.5,2.28694]
[1724301442847,0.09544758,2623.8,2623.5,4.57391]
[1724301443762,0.09544758,2623.8,2623.6,2.2869]
[1724301444558,0.09544758,2623.8,2623.4,2.2871]
[1724301444559,3.6542,2623.7,2623.4,2.2871]
[1724301444739,0.17191913,2623.6,2623.3,4.57428]
[1724301444940,0.17191913,2623.6,2623.3,2.28714]
[1724301445260,0.17191913,2623.6,2623.1,2.28732]
[1724301445261,2.3462,2623.5,2623.1,4.57461]
[1724301445585,2.4412885,2623.5,2623.2,2.28722]
[1724301445900,2.4412885,2623.5,2623.3,4.57438]
[1724301446244,2.4412885,2623.5,2623.4,2.2871]
[1724301447340,0.0950885,2623.5,2623.4,4.5742]
[1724301447545,2.3824,2623.7,2623.6,2.28693]
[1724301447899,2.47739899,2623.7,2623.6,2.28693]
[1724301448104,4.15443899,2623.7,2623.2,2.28725]
[1724301448386,2.3824,2623.5,2623.2,2.28725]
[1724301448689,0.09487407,2623.4,2623.2,2.28725]
[1724301449144,0.09487407,2623.4,2623.2,2.28723]
[1724301450692,0.09487407,2623.4,2623.2,2.28722]
[1724301450988,0.09487407,2623.4,2623.3,2.28719]
[1724301451745,1.308,2623.7,2623.4,2.2871]
[1724301451746,3.6904,2623.7,2623.4,2.2871]
[1724301451961,4.08966407,2623.7,2623.4,2.2871]
[1724301452187,0.09492806,2623.6,2623.4,2.2871]
[1724301453996,0.09492806,2623.6,2623.2,2.28722]
[1724301454150,2.3824,2623.5,2623.2,2.28722]
[1724301454548,0.0948511,2623.4,2623.2,2.28722]
[1724301455354,0.0948511,2623.4,2623.0,4.5748]
[1724301455554,0.0948511,2623.4,2623.1,2.28733]
[1724301461182,0.0948511,2623.4,2623.3,4.57438]
[1724301461384,0.0948511,2623.4,2623.3,2.28719]
[1724301461585,3.6724,2623.7,2623.4,2.28709]
[1724301461905,4.88320546,2623.7,2623.4,2.28709]
[1724301464675,4.88320546,2623.7,2623.3,2.28714]
[1724301464875,4.88320546,2623.7,2623.3,4.57428]
[1724301465075,4.88320546,2623.7,2623.3,2.28714]
[1724301465496,4.88320546,2623.7,2623.3,4.57428]
[1724301465688,4.88320546,2623.7,2623.3,2.28714]
[1724301466074,0.09483269,2623.6,2623.3,2.28714]
[1724301467439,0.79979742,2623.6,2623.3,2.28714]
[1724301467713,0.79979742,2623.6,2623.1,2.28732]
[1724301467915,2.2822,2623.5,2623.1,2.28732]
[1724301468097,2.37702383,2623.5,2623.1,2.28732]
[1724301468301,2.37702383,2623.5,2623.1,4.57464]
[1724301468501,2.37702383,2623.5,2623.2,2.28725]
[1724301469168,2.4898,2623.4,2622.7,2.28765]
[1724301469372,2.4898,2623.0,2622.3,4.64244]
[1724301469574,2.4898,2623.0,2622.7,2.28768]
[1724301469782,0.09454115,2622.9,2622.7,2.28768]
[1724301470640,0.09454115,2622.9,2622.8,2.28761]
[1724301471242,0.09454115,2622.9,2622.2,2.10264149]
[1724301471243,2.4898,2622.8,2622.2,0.79464149]
[1724301471527,1.308,2622.7,2622.3,2.28798]
[1724301471670,0.09420121,2622.7,2622.4,2.28795]
[1724301471871,5.2873,2623.2,2622.7,2.28767]
[1724301471872,2.4898,2623.2,2622.7,2.28767]
[1724301472231,2.4898,2623.2,2622.9,2.28754]
[1724301472371,2.4898,2623.2,2623.0,2.28738]
[1724301476919,2.4898,2623.2,2622.8,2.28755]
[1724301477127,2.4898,2623.2,2622.9,2.28752]
[1724301478011,0.39793728,2623.3,2622.9,4.57501]
[1724301478212,0.39793728,2623.3,2623.0,2.28744]
[1724301478537,9.8477,2623.6,2623.0,2.28744]
[1724301479351,12.13464,2623.6,2623.0,2.28741]
[1724301479517,12.13464,2623.6,2623.0,2.2874]
[1724301479717,14.84258278,2623.6,2623.0,4.5748]
[1724301480543,14.84258278,2623.6,2623.1,2.28736]
[1724301481315,0.08834921,2623.5,2623.1,2.28736]
[1724301482065,0.16503544,2623.5,2623.1,2.28736]
[1724301482234,1.93427604,2623.5,2623.1,2.28736]
[1724301482569,1.93427604,2623.5,2622.9,2.28754]
[1724301482570,4.22130604,2623.5,2622.9,2.28746]
[1724301482865,2.3607,2623.2,2622.7,2.28764]
[1724301483166,2.43738623,2623.2,2622.7,2.28764]
[1724301483467,2.43738623,2623.2,2622.9,2.28746]
[1724301483468,0.08824267,2623.1,2622.9,2.28746]
[1724301484542,0.08824267,2623.1,2622.9,4.57494]
[1724301485451,0.08824267,2623.1,2623.0,2.28745]
[1724301486375,2.3607,2623.5,2623.0,2.976121]
[1724301486557,0.08816416,2623.1,2623.0,2.28745]
[1724301486741,2.3607,2623.5,2623.1,2.28736]
[1724301487141,2.3607,2623.5,2622.9,2.3118]
[1724301487400,2.3607,2623.5,2623.3,2.28718]
[1724301488700,3.38056078,2623.5,2623.1,2.28729]
[1724301489508,3.45724701,2623.5,2623.1,2.28729]
[1724301489963,2.28712,2623.4,2622.9,2.2875]
[1724301490302,0.65112293,2623.3,2622.9,2.28748]
[1724301491722,0.65112293,2623.3,2622.9,4.57497]
[1724301492005,2.3055,2623.2,2622.7,2.28766]
[1724301492154,0.51671867,2623.1,2622.7,2.28766]
[1724301493932,0.51671867,2623.1,2622.7,4.57532]
[1724301494083,0.51671867,2623.1,2622.7,4.57533]
[1724301494622,0.51671867,2623.1,2622.8,2.28762]
[1724301495913,2.38218623,2623.2,2622.9,2.28752]
[1724301496113,2.3429,2623.5,2623.1,2.28731]
[1724301496911,2.3429,2623.5,2622.8,1.98870379]
[1724301497094,2.3429,2623.5,2623.2,4.57441]
[1724301497474,7.44,2623.6,2623.3,2.28716]
[1724301498932,7.44,2623.6,2623.2,2.2872]
[1724301500331,7.44,2623.6,2623.3,2.28719]
[1724301500485,7.44,2623.6,2623.5,2.28702]
[1724301500690,0.59772824,2624.4,2623.5,2.3349]
[1724301500945,2.4368,2624.8,2624.2,2.28639]
[1724301502130,2.4368,2624.8,2624.2,2.28633]
[1724301502332,0.47226,2624.7,2624.2,2.28633]
[1724301503033,0.47226,2624.7,2624.2,4.57267]
[1724301503388,0.47226,2624.7,2624.2,2.28633]
[1724301503985,0.47226,2624.7,2624.0,2.28652]
[1724301504183,0.47226,2624.7,2624.0,2.762932]
[1724301504789,0.47226,2624.7,2624.2,2.28639]
[1724301504990,2.83467239,2624.8,2624.2,2.28633]
[1724301505385,2.83467239,2624.8,2624.4,2.28622]
[1724301505737,2.83467239,2624.8,2624.5,2.28608]
[1724301506051,0.39787239,2624.8,2624.6,2.28605]
[1724301506211,9.7005,2625.2,2624.7,2.28597]
[1724301506386,9.7005,2625.2,2624.9,2.28578]
[1724301506387,7.44,2625.2,2624.9,2.28578]
[1724301506592,2.2605,2625.4,2624.9,2.28578]
[1724301506951,3.49886754,2625.4,2624.9,2.28578]
[1724301507128,5.78423754,2625.4,2624.7,4.57183]
[1724301507332,5.78423754,2625.4,2624.8,2.28588]
[1724301507642,0.8467413,2625.3,2624.8,2.28588]
[1724301508423,0.8467413,2625.3,2624.7,2.2859]
[1724301508638,3.1322113,2625.3,2624.7,2.2859]
[1724301510410,0.07668623,2625.2,2624.7,2.2859]
[1724301511347,0.08138331,2625.1,2624.5,2.28607]
[1724301511492,2.3404,2625.0,2624.5,2.28607]
[1724301511692,2.41708623,2625.0,2624.5,2.28607]
[1724301511932,0.08128921,2624.9,2624.5,2.28607]
[1724301512089,0.08128921,2624.9,2624.5,4.57215]
[1724301512498,0.08128921,2624.9,2624.6,2.28605]
[1724301513038,0.08128921,2624.9,2624.7,2.28597]
[1724301513400,0.08128921,2624.9,2624.7,4.57194]
[1724301513595,0.08128921,2624.9,2624.7,2.28597]
[1724301514143,0.08128921,2624.9,2624.7,4.57189]
[1724301514437,0.08128921,2624.9,2624.7,2.28592]
[1724301515344,0.32345813,2624.9,2624.5,2.2861]
[1724301516298,0.40014436,2624.9,2624.5,2.2861]
[1724301518046,0.40014436,2624.9,2624.3,2.28629]
[1724301518228,2.4539,2624.8,2624.1,2.28642]
[1724301518396,2.36265623,2624.7,2624.1,4.57286]
[1724301518738,2.44400267,2624.7,2624.1,2.28642]
[1724301519220,2.4539,2624.6,2624.1,2.28642]
[1724301519420,0.07668623,2624.5,2624.1,2.28642]
[1724301519622,0.07668623,2624.5,2623.9,2.28662]
[1724301519623,2.93385186,2624.5,2623.9,2.28662]
[1724301519808,4.74015,2624.4,2623.8,2.28674]
[1724301520005,0.07668623,2624.3,2623.8,2.28674]
[1724301520287,0.64737438,2624.3,2623.8,2.28674]
[1724301520418,0.07668623,2624.2,2623.8,2.28674]
[1724301520814,0.08081468,2624.1,2623.9,2.28664]
[1724301522151,0.08081468,2624.1,2623.4,2.28703]
[1724301522152,2.4627,2624.0,2623.4,2.28703]
[1724301522437,2.4627,2624.0,2623.6,2.28687]
[1724301522438,0.3310377,2623.9,2623.6,2.28687]
[1724301522639,0.15732348,2623.9,2623.6,2.28687]
[1724301522810,0.08063725,2623.9,2623.6,2.28687]
[1724301523448,0.08063725,2623.9,2623.7,2.28682]
[1724301525340,0.33497098,2623.9,2623.6,2.28691]
[1724301525600,0.33497098,2623.9,2623.5,2.28696]
[1724301525849,0.07668623,2623.8,2623.5,2.28696]
[1724301526217,0.08033363,2623.7,2623.5,2.28696]
[1724301527033,0.08033363,2623.7,2623.3,2.28714]
[1724301527234,0.15701986,2623.7,2623.3,2.28714]
[1724301527853,2.4854,2623.6,2623.1,2.28733]
[1724301528352,0.08012082,2623.5,2623.1,2.28733]
[1724301528703,0.08012082,2623.5,2623.3,2.28718]
[1724301529609,0.08012082,2623.5,2623.1,2.2873]
[1724301530204,0.08012082,2623.5,2622.9,2.28751]
[1724301530205,2.36714082,2623.5,2623.0,2.28745]
[1724301530400,2.36714082,2623.5,2622.9,2.28751]
[1724301530651,2.3329,2623.4,2622.7,2.28764]
[1724301530855,2.3329,2623.4,2622.8,2.28756]
[1724301530856,0.07668623,2623.3,2622.8,2.28756]
[1724301531159,0.07990167,2623.3,2622.9,2.28753]
[1724301531334,0.1565879,2623.3,2622.9,2.28753]
[1724301532368,0.07990167,2623.3,2622.9,2.28753]
[1724301532553,4.78463,2623.2,2622.7,2.28764]
[1724301532879,2.57683146,2623.2,2622.7,2.28764]
[1724301533567,2.57683146,2623.2,2622.7,4.5753]
[1724301534573,2.57683146,2623.2,2622.8,2.28762]
[1724301536058,2.57683146,2623.2,2622.7,2.28764]
[1724301536259,3.06322961,2623.2,2622.8,2.28762]
[1724301537937,3.13991584,2623.2,2622.7,2.28764]
[1724301538880,3.13991584,2623.2,2622.7,4.5753]
[1724301539486,3.13991584,2623.2,2622.7,2.28764]
[1724301539689,0.54271258,2623.1,2622.7,2.28764]
[1724301539885,0.07668623,2623.0,2622.7,2.28764]
[1724301540072,0.15046064,2623.0,2622.7,2.28764]
[1724301540281,0.15046064,2623.0,2622.7,4.57529]
[1724301540469,0.07377441,2623.0,2622.8,2.28757]
[1724301540672,0.07377441,2623.0,2622.9,2.28754]
[1724301540991,2.4973,2623.2,2622.9,2.28754]
[1724301541140,0.07129245,2623.0,2622.9,2.28754]
[1724301541340,2.4973,2623.2,2622.9,2.28754]
[1724301541844,0.07132318,2623.1,2622.9,2.28754]
[1724301542046,0.07132318,2623.1,2623.0,2.28745]
[1724301542826,2.74753302,2623.4,2623.0,2.28745]
[1724301542991,0.07130931,2623.1,2623.0,2.28745]
[1724301543163,2.74753302,2623.4,2623.0,2.28745]
[1724301543680,0.07140354,2623.3,2623.0,2.28745]
[1724301547846,0.07140354,2623.3,2623.0,2.28741]
[1724301548051,0.07140354,2623.3,2623.1,2.28735]
[1724301548558,0.07140354,2623.3,2623.0,2.28741]
[1724301550293,0.07140354,2623.3,2623.0,2.2874]
[1724301554527,2.35864354,2623.3,2622.7,2.28771]
[1724301554707,2.4184,2623.2,2622.2,2.2651]
[1724301554912,2.28744,2623.1,2622.6,4.57553]
[1724301555076,0.06462357,2623.1,2622.7,2.2877]
[1724301555574,0.06462357,2623.1,2622.8,2.28757]
[1724301560792,0.06462357,2623.1,2622.9,2.28749]
[1724301561017,2.65893302,2623.4,2622.9,2.28749]
[1724301561324,0.39793302,2623.4,2623.0,2.28744]
[1724301561483,0.39793302,2623.4,2623.2,2.28726]
[1724301562847,0.39793302,2623.4,2623.2,2.28722]
[1724301562980,7.44,2623.5,2623.3,2.28719]
[1724301563179,7.44,2623.5,2623.4,2.2871]
[1724301563394,15.11292781,2623.9,2623.4,2.744532]
[1724301563620,15.11292781,2623.9,2623.4,4.57415]
[1724301563821,15.11292781,2623.9,2623.4,2.28705]
[1724301564707,0.39802781,2623.9,2623.5,2.28695]
[1724301565097,0.39802781,2623.9,2623.5,2.28701]
[1724301567184,0.39802781,2623.9,2623.4,4.69945]
[1724301567185,0.39802781,2623.9,2623.4,2.28705]
[1724301568319,0.39802781,2623.9,2623.4,4.5741]
[1724301568533,2.3065,2623.8,2623.4,4.5741]
[1724301570313,2.3065,2623.8,2623.4,2.28705]
[1724301570655,2.3065,2623.8,2623.4,4.5741]
[1724301570956,2.3065,2623.8,2623.5,2.28701]
[1724301571162,0.06242837,2623.7,2623.5,2.28701]
[1724301572322,0.06242837,2623.7,2623.5,0.457406]
[1724301572522,2.4122,2624.2,2623.8,2.28673]
[1724301572921,0.06057275,2624.1,2623.8,2.28673]
[1724301576412,0.06057275,2624.1,2623.8,4.57344]
[1724301577358,0.06057275,2624.1,2623.8,4.57342]
[1724301577552,0.06057275,2624.1,2623.8,2.28671]
[1724301579357,0.70698408,2624.1,2623.8,2.28671]
[1724301580852,0.70698408,2624.1,2623.9,2.2866]
[1724301580853,0.06057275,2624.1,2623.9,2.2866]
[1724301581163,0.39800057,2624.3,2623.9,2.2866]
[1724301581351,0.06063773,2624.0,2623.9,2.2866]
[1724301581548,0.39800057,2624.3,2623.9,2.2866]
[1724301581752,0.06064866,2624.0,2623.9,2.2866]
[1724301581947,0.39800057,2624.3,2623.9,2.743931]
[1724301582279,0.39800057,2624.3,2623.8,2.28671]
[1724301582280,0.39800057,2624.3,2624.0,2.28657]
[1724301583248,0.39800057,2624.3,2624.0,2.28653]
[1724301583452,9.8931,2624.6,2624.2,2.28641]
[1724301583974,9.8931,2624.6,2624.1,4.5729]
[1724301584196,9.8931,2624.6,2624.2,2.2864]
[1724301584390,9.8931,2624.6,2624.1,2.28642]
[1724301584728,9.8931,2624.6,2624.2,2.28641]
[1724301586138,0.0610329,2624.5,2624.2,2.28641]
[1724301586640,0.0610329,2624.5,2624.2,4.57282]
[1724301586837,0.0610329,2624.5,2624.2,2.28635]
[1724301589083,0.0610329,2624.5,2624.3,2.28627]
[1724301589298,0.39801503,2624.7,2624.3,2.28627]
[1724301589705,0.06119033,2624.6,2624.3,2.28627]
[1724301595687,0.06119033,2624.6,2624.2,2.28638]
[1724301597245,0.06119033,2624.6,2624.2,4.57276]
[1724301597696,0.06119033,2624.6,2624.2,2.28638]
[1724301598373,0.06119033,2624.6,2624.2,4.57274]
[1724301598576,0.71279987,2624.6,2624.0,4.57303]
[1724301598772,3.7891,2624.5,2624.0,2.2865]
[1724301599087,3.92711103,2624.5,2624.0,2.2865]
[1724301599290,1.307,2624.3,2623.5,2.4516]
[1724301599506,2.4821,2624.0,2623.6,2.28693]
[1724301600009,0.06104729,2623.9,2623.6,2.28693]
[1724301600362,0.06104729,2623.9,2623.5,2.28699]
[1724301600994,1.44473352,2623.9,2623.4,2.28705]
[1724301601198,0.13773352,2623.9,2623.4,2.28705]
[1724301601401,0.06104729,2623.9,2623.6,2.28692]
[1724301601580,0.06104729,2623.9,2623.8,2.28675]
[1724301601764,2.4999,2624.2,2623.7,2.28678]
[1724301601964,2.4999,2624.2,2623.9,2.28667]
[1724301603275,3.14902349,2624.2,2623.7,2.28678]
[1724301603488,3.14902349,2624.2,2623.8,2.28675]
[1724301603793,3.14902349,2624.2,2623.7,2.28678]
[1724301604118,3.22570972,2624.2,2623.7,4.57357]
[1724301604479,3.22570972,2624.2,2623.7,2.28678]
[1724301604697,0.68190397,2624.1,2623.7,2.28678]
[1724301605200,3.22570972,2624.2,2623.7,4.57357]
[1724301605587,3.22570972,2624.2,2623.0,4.02338549]
[1724301605588,2.4922,2624.0,2623.5,2.28699]
[1724301605988,2.4922,2624.0,2623.6,2.28692]
[1724301605989,0.07668623,2623.9,2623.6,2.28692]
[1724301606221,2.4922,2624.0,2623.6,2.28692]
[1724301607412,3.17334197,2624.0,2623.6,2.28692]
[1724301609071,3.17334197,2624.0,2623.5,2.28696]
[1724301609274,2.4922,2624.0,2623.7,2.28678]
[1724301610098,2.4371,2624.2,2623.9,4.57324]
[1724301610306,2.4371,2624.2,2623.9,2.28662]
[1724301610471,2.4371,2624.2,2623.9,4.57323]
[1724301610732,2.4371,2624.2,2623.9,2.28661]
[1724301611153,2.4371,2624.2,2623.9,2.2866]
[1724301611343,2.4371,2624.2,2623.9,2.28664]
[1724301611529,2.4371,2624.2,2623.9,4.57326]
[1724301611754,2.4371,2624.2,2623.9,2.28662]
[1724301611959,2.4371,2624.2,2623.9,4.57324]
[1724301612163,2.4371,2624.2,2624.0,2.28653]
[1724301613527,0.39808489,2624.4,2624.1,2.28649]
[1724301613761,0.39808489,2624.4,2624.3,2.28632]
[1724301614456,0.39808489,2624.4,2624.3,4.57264]
[1724301616196,7.44,2624.6,2624.4,2.28618]
[1724301616381,3.6895,2624.8,2624.4,2.28618]
[1724301619853,2.28631,2624.4,2623.8,2.28668]
[1724301620058,1.307,2624.1,2623.5,2.28699]
[1724301620370,3.5856,2623.9,2623.6,2.2869]
[1724301620906,3.5856,2623.9,2623.5,2.28696]
[1724301621053,3.5856,2623.9,2623.1,5.97790224]
[1724301621054,1.307,2623.7,2623.1,0.79464149]
[1724301621254,2.865816,2623.9,2623.1,2.28728]
[1724301621255,3.5856,2623.5,2623.1,2.28728]
[1724301621455,3.5856,2623.5,2622.9,2.2875]
[1724301621456,3.5856,2623.5,2622.9,4.57497]
[1724301621682,3.5856,2623.5,2622.9,2.28747]
[1724301621891,0.07668623,2623.4,2622.9,2.28747]
[1724301622096,1.307,2623.3,2622.9,2.28747]
[1724301622303,0.07668623,2623.2,2622.9,2.28747]
[1724301623019,0.07668623,2623.3,2622.9,2.28747]
[1724301624985,0.07668623,2623.3,2622.9,4.57496]
[1724301626522,0.67161385,2623.4,2623.0,2.28743]
[1724301628103,0.67161385,2623.4,2622.9,2.28747]
[1724301628273,0.56354165,2623.3,2622.9,4.57495]
[1724301628492,0.67161385,2623.4,2622.9,2.28747]
[1724301629329,0.67161385,2623.4,2623.0,2.28744]
[1724301631205,0.05981583,2623.3,2623.0,2.28744]
[1724301631930,0.09912641,2623.3,2623.0,2.28744]
[1724301636935,0.09912641,2623.3,2622.9,2.28752]
[1724301637139,4.81167623,2623.2,2622.6,2.28773]
[1724301637296,2.52438623,2623.2,2622.6,2.28773]
[1724301637496,2.38622592,2623.1,2622.4,2.2879]
[1724301637692,0.07668623,2623.0,2622.5,2.28783]
[1724301637890,0.07668623,2623.0,2622.2,2.28809]
[1724301638206,0.09872781,2622.9,2622.2,2.28809]
[1724301638389,0.07668623,2622.8,2622.2,2.28809]
[1724301638892,0.09864749,2622.7,2622.2,2.28809]
[1724301639195,0.09864749,2622.7,2622.3,2.28805]
[1724301639390,0.07668623,2622.8,2622.3,2.28805]
[1724301639598,0.09864749,2622.7,2622.3,2.28805]
[1724301639827,0.07668623,2622.9,2622.3,2.28805]
[1724301640033,0.09868765,2622.8,2622.3,2.28805]
[1724301640543,0.09868765,2622.8,2622.3,4.57607]
[1724301641743,2.4714,2622.7,2622.3,2.28802]
[1724301642052,0.09841717,2622.6,2622.3,4.576]
[1724301642668,4.75334,2622.9,2622.4,2.28797]
[1724301642871,4.75334,2622.9,2622.3,4.576]
[1724301643186,0.09832591,2622.8,2622.3,2.28799]
[1724301643687,0.09832591,2622.8,2622.4,2.28797]
[1724301644255,0.09832591,2622.8,2622.3,4.576]
[1724301644983,0.09832591,2622.8,2622.3,2.28799]
[1724301645355,0.09832591,2622.8,2622.3,4.576]
[1724301645552,0.09832591,2622.8,2622.3,2.28799]
[1724301648062,2.38596591,2622.8,2622.3,2.28799]
[1724301648237,2.38596591,2622.8,2622.1,5.127992]
[1724301648437,4.67365591,2622.8,2622.2,2.28814]
[1724301648639,2.38596591,2622.8,2622.2,2.28814]
[1724301649485,2.38596591,2622.8,2622.3,2.28806]
[1724301651567,0.09832591,2622.8,2622.3,2.28806]
[1724301651781,0.09832591,2622.8,2622.4,2.28797]
[1724301654465,0.09832591,2622.8,2622.3,2.28801]
[1724301655353,0.09832591,2622.8,2622.4,2.28797]
[1724301657999,2.53448623,2622.7,2622.2,2.28815]
[1724301658349,0.09817135,2622.6,2622.2,2.28815]
[1724301659550,0.09817135,2622.6,2622.2,4.57625]
[1724301659757,0.09817135,2622.6,2622.2,5.033875]
[1724301660205,0.09817135,2622.6,2622.2,2.745725]
[1724301660859,0.09817135,2622.6,2622.3,2.288]
[1724301661779,0.09817135,2622.6,2622.5,2.28789]
[1724301662661,0.09817135,2622.6,2622.4,2.28797]
[1724301662860,0.09817135,2622.6,2622.3,2.9270525]
[1724301663547,0.09817135,2622.6,2622.3,5.2150625]
[1724301663710,0.09817135,2622.6,2622.4,2.28793]
[1724301665900,0.09817135,2622.6,2622.3,2.9270525]
[1724301666065,0.09817135,2622.6,2622.3,4.57601]
[1724301666422,0.09817135,2622.6,2622.3,2.288]
[1724301666993,0.09817135,2622.6,2622.3,4.57602]
[1724301667523,0.09817135,2622.6,2622.3,2.288]
[1724301672581,0.09817135,2622.6,2622.1,2.2882]
[1724301672782,0.09817135,2622.6,2622.2,2.28815]
[1724301673886,0.09817135,2622.6,2622.3,2.28806]
[1724301674820,0.09817135,2622.6,2622.1,2.72727415]
[1724301675001,0.09817135,2622.6,2622.2,2.28815]
[1724301676095,0.09817135,2622.6,2622.3,2.28806]
[1724301678112,0.09817135,2622.6,2622.3,2.28802]
[1724301678313,0.09817135,2622.6,2622.3,2.78954942]
[1724301679717,0.09817135,2622.6,2622.3,5.07755942]
[1724301679912,0.09817135,2622.6,2622.3,0.50152942]
[1724301680125,0.09817135,2622.6,2622.3,2.28805]
[1724301680349,0.09817135,2622.6,2622.4,2.28791]
[1724301680999,2.3043,2622.0,2621.6,0.79464149]
[1724301681199,2.3043,2621.7,2621.4,0.41304149]
[1724301681442,2.3043,2621.7,2621.6,2.28867]
[1724301682394,2.3043,2621.7,2621.5,4.57742]
[1724301682558,2.3043,2621.7,2621.5,2.28871]
[1724301682766,2.3043,2621.7,2621.6,2.28867]
[1724301683046,2.28808,2622.3,2621.6,2.28867]
[1724301683047,2.4189,2622.4,2621.8,2.2885]
[1724301683202,2.4189,2622.3,2621.8,2.2885]
[1724301683408,2.4189,2622.1,2621.6,2.28863]
[1724301683743,3.7269,2622.0,2621.6,2.28863]
[1724301684616,2.4189,2621.9,2621.6,2.28863]
[1724301685004,2.4189,2621.9,2621.5,2.28875]
[1724301685523,2.4189,2621.9,2621.6,2.28862]
[1724301685720,2.4189,2621.9,2621.7,2.28858]
[1724301686225,2.2857,2622.1,2621.9,2.28836]
[1724301687406,2.2857,2622.1,2621.9,4.57672]
[1724301687606,2.2857,2622.1,2621.9,2.28836]
[1724301687841,2.2857,2622.1,2622.0,2.28832]
[1724301688050,7.44,2622.8,2622.3,2.28801]
[1724301688205,2.2648,2622.7,2622.4,2.28795]
[1724301688404,3.5728,2622.7,2622.2,2.28812]
[1724301688899,2.2648,2622.6,2622.2,2.28812]
[1724301689740,1.308,2622.5,2622.2,2.28812]
[1724301690131,1.308,2622.5,2622.0,2.2883]
[1724301690630,2.2648,2622.6,2622.0,2.2883]
[1724301690827,2.2648,2622.6,2622.0,2.64793]
[1724301691067,2.2648,2622.6,2622.2,2.28815]
[1724301691204,0.09741198,2622.5,2622.2,2.28815]
[1724301695060,0.4957571,2622.5,2622.2,2.28815]
[1724301696554,2.4323,2622.4,2622.2,2.28815]
[1724301696733,2.4323,2622.4,2622.0,4.57652]
[1724301696932,0.09590019,2622.3,2622.1,2.28823]
[1724301697465,0.09590019,2622.3,2622.0,2.28825]
[1724301697664,0.09590019,2622.3,2622.1,2.28824]
[1724301699256,0.09590019,2622.3,2622.2,2.28815]
[1724301700968,0.39834512,2622.5,2622.2,2.28815]
[1724301701219,0.39834512,2622.5,2622.3,2.28805]
[1724301702444,0.39834512,2622.5,2622.4,2.28798]
[1724301705752,0.39834512,2622.5,2622.3,2.28805]
[1724301706071,0.39834512,2622.5,2622.4,2.28798]
[1724301706991,0.39834512,2622.5,2622.3,2.28805]
[1724301708593,0.39834512,2622.5,2622.4,2.28798]
[1724301713598,2.75164512,2622.5,2622.2,2.28813]
[1724301713749,2.75164512,2622.5,2622.0,2.28827]
[1724301714098,2.75164512,2622.5,2622.1,2.28819]
[1724301714264,3.38638663,2622.5,2622.1,2.28819]
[1724301714857,4.69438663,2622.5,2622.1,2.28819]
[1724301715058,4.69438663,2622.5,2622.2,2.28813]
[1724301715783,4.69438663,2622.5,2622.2,4.57623]
[1724301716100,2.75164512,2622.5,2622.2,4.57623]
[1724301716671,2.75164512,2622.5,2622.2,2.2881]
[1724301717758,2.75164512,2622.5,2622.2,4.5762]
[1724301718154,2.75164512,2622.5,2622.2,2.2881]
[1724301718995,2.75164512,2622.5,2622.2,4.5762]
[1724301719299,2.75164512,2622.5,2622.2,2.2881]
[1724301719598,2.75164512,2622.5,2622.2,4.5762]
[1724301719948,2.75164512,2622.5,2622.3,2.28806]
[1724301721157,0.09619185,2622.4,2622.3,2.28806]
[1724301722269,0.09619185,2622.4,2622.2,2.2881]
[1724301722471,0.09619185,2622.4,2622.2,4.57619]
[1724301722888,0.09619185,2622.4,2622.3,2.28806]
[1724301725298,0.09619185,2622.4,2622.3,6.585075]
[1724301725800,0.09619185,2622.4,2622.3,8.873135]
[1724301725971,0.09619185,2622.4,2622.3,19.90956759]
[1724301726173,2.28672,2623.9,2623.2,2.28728]
[1724301726174,2.2796,2623.7,2623.2,2.28728]
[1724301726486,0.09180479,2623.6,2623.2,2.28728]
[1724301726859,0.49012901,2623.6,2623.2,2.28728]
[1724301727957,0.49012901,2623.6,2623.3,2.28718]
[1724301728211,0.49012901,2623.6,2623.4,2.28704]
[1724301728500,0.49012901,2623.6,2623.3,2.28718]
[1724301728501,0.49012901,2623.6,2623.3,2.28712]
[1724301728857,0.49012901,2623.6,2623.4,2.28705]
[1724301729803,0.49012901,2623.6,2623.5,2.28702]
[1724301730110,2.2927,2624.4,2623.9,2.28663]
[1724301730280,0.39829293,2624.1,2623.9,2.28663]
[1724301730475,0.08655615,2624.0,2623.9,2.28663]
[1724301742983,2.35285615,2624.0,2623.7,2.28679]
[1724301743307,2.35285615,2624.0,2623.9,4.57334]
[1724301743308,0.08655615,2624.0,2623.9,4.57334]
[1724301743717,0.08655615,2624.0,2623.9,5.264274]
[1724301744028,0.39829293,2624.1,2624.0,4.57316]
[1724301748023,2.2663,2624.7,2624.3,2.28627]
[1724301748187,0.3982747,2624.4,2624.3,2.28627]
[1724301748602,0.48547342,2624.4,2624.3,2.28627]
[1724301750804,2.4214,2624.3,2624.1,4.57286]
[1724301751133,0.08747526,2624.2,2624.1,2.28643]
[1724301751299,2.4214,2624.3,2624.1,2.28643]
[1724301751510,0.08747526,2624.2,2624.1,2.28643]